Cogmind - Beta 9.5 @@@ ROGUE MODE // 2020.04.04 @ 01:06:57 Player: IAMCRAIG Result: Destroyed by S-10 Pest with Light Assault Rifle Performance ------------- Evolutions (0) 0 Regions Visited (1) 200 Robots Destroyed (20) 100 Value Destroyed (309) 309 Prototype IDs (2) 40 Alien Tech Used (0) 0 Bonus (0) 0 TOTAL SCORE: 649 Bonus ------- None Cogmind --------- Core Integrity 0/250 Matter 285/300 Energy 92/100 System Corruption 0% Temperature Cool (0) Movement Rolling (100) Location -10/Materials Parts ------- > --- POWER (1) -------- (None) > --- PROPULSION (2) --- Compact Wheel Compact Wheel > --- UTILITY (2) ------ Medium Storage Unit Large Storage Unit > --- WEAPON (2) ------- Mining Claw Mining Claw > --- INVENTORY (14) --- Ion Engine Wheel Wheel Compact Wheel Heat Sink Large Storage Unit Large Battery (300) High-capacity Matter Pod (200) Light Assault Rifle Mining Laser Mining Claw Peak State ------------ > --- POWER ------------ Light Nuclear Core > --- PROPULSION ------- Light Treads Light Treads > --- UTILITY ---------- Large Storage Unit High-capacity Matter Pod > --- WEAPON ----------- Mining Claw Mining Claw > --- INVENTORY -------- Ion Engine Wheel Wheel Compact Wheel Compact Wheel Heat Sink Medium Storage Unit Large Storage Unit Large Battery Mining Laser [Rating: 10] Favorites ----------- Power Light Ion Engine Engine Light Ion Engine Power Core Light Nuclear Core Propulsion Wheel Treads Light Treads Wheel Wheel Utility Large Storage Unit Device Tractor Beam Storage Large Storage Unit Weapon Mining Claw Energy Cannon Beam Cannon Ballistic Gun Light Assault Rifle Slashing Weapon Mining Claw Build | -11 -10 ------- Run | Scr Mat Slots Evolved . | . . Power . | . . Propulsion . | . . Utility . | . . Weapon . | . . Parts Attached 27 | 10 17 Power 4 | 2 2 Engine 3 | 2 1 Core 1 | . 1 Reactor . | . . Propulsion 9 | 3 6 Treads 2 | . 2 Leg . | . . Wheel 7 | 3 4 Hover . | . . Flight . | . . Utility 6 | 3 3 Device 1 | 1 . Storage 5 | 2 3 Processor . | . . Hackware . | . . Protection . | . . Artifact . | . . Weapon 8 | 2 6 Energy Gun . | . . Energy Cannon 2 | . 2 Ballistic Gun 3 | 2 1 Ballistic Cannon . | . . Launcher . | . . Special Weapon . | . . Impact Weapon . | . . Slashing Weapon 3 | . 3 Piercing Weapon . | . . Special Melee Weapon . | . . Unidentified Prototypes . | . . Parts Lost 7 | . 7 Power 2 | . 2 Propulsion 2 | . 2 Utility . | . . Weapon 3 | . 3 Highest Loss Streak 2 | . 2 Average Slot Usage (%) 91 | . 91 Engine 7 | . 7 Core 1 | . 1 Treads 11 | . 11 Wheel 16 | . 16 Storage 28 | . 28 Energy Cannon 4 | . 4 Ballistic Gun 5 | . 5 Slashing Weapon 15 | . 15 Naked Turns . | . . Heaviest Build 31 | 12 31 Greatest Support 40 | 26 40 Greatest Overweight (x) 1 | . 1 Average Overweight (x) . | . . Largest Inventory Capacity 14 | 6 14 Average Capacity 10 | 5 11 Most Carried 12 | 6 12 Average Carried 8 | 4 9 Final Capacity 14 | 6 14 Final Carried 11 | 6 11 Class Distribution -------------------- 100% | Mutant Dominant Class ---------------- Mutant | -10/Materials Resources | -11 -10 ----------- Run | Scr Mat Matter Collected 646 | 381 265 Remotely 211 | 211 . Salvage Created 613 | 204 409 Parts 43 | 15 28 Haulers Intercepted . | . . Recyclers Shooed . | . . Parts Field Recycled . | . . Retrieved Matter . | . . Parts Self-Destructed . | . . Prevented . | . . Kills | -11 -10 ------- Run | Scr Mat Combat Hostiles Destroyed 11 | . 11 Melee 7 | . 7 Guns 3 | . 3 Cannons 1 | . 1 Classes Destroyed 7 | 3 4 Worker 2 | 2 . Builder 1 | . 1 Tunneler 3 | 3 . Recycler 2 | 1 1 Watcher 1 | . 1 Swarmer 6 | . 6 Grunt 5 | . 5 Best Kill Streak 3 | 3 2 Combat Bots Only 2 | . 2 Max Kills in Single Turn 1 | 1 1 Gunslinging . | . . Exploded . | . . Melee 1 | . 1 Uniques/NPCs Destroyed . | . . Combat | -11 -10 -------- Run | Scr Mat Damage Taken 1094 | . 1094 Core 258 | . 258 Absorbed by Shields . | . . Core Remaining (%) 100 | 100 . Volleys Fired 56 | 17 39 Largest 2 | 2 2 Hottest 120 | 40 120 Shots Fired 88 | 34 54 Gun 64 | 34 30 Cannon 24 | . 24 Launcher . | . . Special . | . . Kinetic 64 | 34 30 Thermal 24 | . 24 Explosive . | . . Electromagnetic . | . . Robot Hit Streak 9 | 9 7 Robot Miss Streak 8 | 3 8 Penetration Max . | . . Secondary Targets . | . . Shots Hit Robots 73 | 24 49 Core Hits 31 | 11 20 Critical Hits . | . . Critical Kills . | . . Critical Parts Destroyed . | . . Melee Attacks 32 | . 32 Impact . | . . Slashing 32 | . 32 Piercing . | . . Sneak Attacks 3 | . 3 Combat Hostiles 1 | . 1 Follow-up Attacks 3 | . 3 Damage Inflicted 1174 | 193 981 Guns 341 | 193 148 Cannons 244 | . 244 Explosions . | . . Melee 586 | . 586 Ramming 3 | . 3 Kinetic 341 | 193 148 Thermal 244 | . 244 Explosive . | . . Electromagnetic . | . . Impact . | . . Slashing 586 | . 586 Piercing . | . . Highest Corruption . | . . Average Corruption . | . . Corruption Purged . | . . Overload Shots . | . . Overflow Damage 57 | . 57 Projectiles 31 | . 31 Explosions . | . . Melee 26 | . 26 Knockbacks . | . . Impact . | . . Kinetic . | . . Secondary . | . . Self-Inflicted Damage 1 | . 1 Shots . | . . Rammed 1 | . 1 Targets Rammed 1 | . 1 Kicked . | . . Crushed . | . . Highest Temperature 354 | . 354 Average Temperature 118 | . 118 Received Heat Transfer 219 | . 219 Effects 1 | . 1 Matter Decay 1 | . 1 Siege Activations . | . . Robots Corrupted . | . . Combat Hostiles . | . . Parts Fried . | . . Impact Corruptions . | . . Robots Melted . | . . Combat Hostiles . | . . Parts Melted 1 | . 1 Heat Transferred 518 | . 518 Parts Sabotaged . | . . Parts Stolen . | . . Parts Stripped . | . . Power Chain Reactions . | . . Missiles Intercepted . | . . Alert | -11 -10 ------- Run | Scr Mat Peak Influence 216 | 30 216 Average Influence 89 | 12 107 Maximum Alert Level 1 | . 1 Low Security (%) 86 | 100 83 Level 1 13 | . 16 Level 2 . | . . Level 3 . | . . Level 4 . | . . Level 5 . | . . High Security . | . . Max Security . | . . Squads Dispatched 2 | . 2 Investigation 2 | . 2 Extermination . | . . Reinforcement . | . . Assault . | . . Garrison . | . . Intercept . | . . Construction Impeded . | . . Haulers Reinforced . | . . Stealth | -11 -10 --------- Run | Scr Mat Distress Signals 1 | . 1 Communications Jammed . | . . Distress Signals . | . . Times Spotted 27 | . 27 Peak Tracking Total 6 | . 6 Tactical Retreats 2 | . 2 Traps | -11 -10 ------- Run | Scr Mat Traps Triggered 1 | . 1 Indirectly . | . . Trap Hack Attempts . | . . Triggered . | . . Disarmed . | . . Reprogrammed . | . . Reused . | . . Traps Extracted . | . . Installed . | . . Triggered . | . . Machines | -11 -10 ---------- Run | Scr Mat Machines Disabled 1 | . 1 Max in Single Turn 1 | . 1 Machines Sabotaged . | . . Garrisons Compromised . | . . Overloaded Fab Kills . | . . Fab Network Shutdowns . | . . Hacking | -11 -10 --------- Run | Scr Mat Machines Accessed 4 | . 4 Terminals 4 | . 4 Fabricators . | . . Repair Stations . | . . Recycling Units . | . . Scanalyzers . | . . Garrison Access . | . . Total Hacks 19 | . 19 Successful 11 | . 11 Failed 7 | . 7 Catastrophic . | . . Database Lockouts 1 | . 1 Manual 13 | . 13 Terminals 19 | . 19 Fabricators . | . . Repair Stations . | . . Recycling Units . | . . Scanalyzers . | . . Garrison Access . | . . Terminal Hacks 5 | . 5 Robot Analysis 2 | . 2 Prototype ID Bank 1 | . 1 Locate Traps 1 | . 1 Zone Layout 1 | . 1 Fabricator Hacks . | . . Repair Station Hacks . | . . Recycling Unit Hacks . | . . Scanalyzer . | . . Garrison Access Hacks . | . . Unauthorized Hacks 14 | . 14 Terminals 6 | . 6 Track 1 | . 1 Botnet 3 | . 3 Disrupt 1 | . 1 Operators 1 | . 1 Fabricators . | . . Repair Stations . | . . Recycling Units . | . . Scanalyzers . | . . Garrison Access . | . . Data Cores Recovered . | . . Used . | . . Hacking Detections 4 | . 4 Full Trace Events . | . . Feedback Events . | . . Feedback Blocked . | . . Robot Schematics Acquired . | . . Robots Built . | . . Matter . | . . Time . | . . Total Robot Build Rating . | . . Part Schematics Acquired . | . . Parts Built . | . . Matter . | . . Time . | . . Total Part Build Rating . | . . Parts Repaired . | . . Time . | . . Parts Recycled . | . . Recycled Matter . | . . Retrieved Matter . | . . Retrieved Components . | . . Parts Scanalyzed . | . . Part Schematics Acquired . | . . Parts Damaged . | . . Bothacking | -11 -10 ------------ Run | Scr Mat Used RIF Installer . | . . Robots Hacked . | . . Non-combat . | . . Combat . | . . Robot Hacks Applied . | . . Relay Couplers Released . | . . Robots Rewired . | . . Allies Hacked . | . . Hacks Repelled . | . . Allies | -11 -10 -------- Run | Scr Mat Total Allies . | . . Largest Group . | . . Highest-Rated Group . | . . Highest-Rated Ally . | . . Total Orders . | . . Ally Attacks . | . . Total Damage . | . . Kills . | . . Allies Corrupted . | . . Allies Melted . | . . Intel | -11 -10 ------- Run | Scr Mat Robot Analysis Total 2 | . 2 Derelict Logs Recovered . | . . Drone Launches . | . . Drone Recoveries . | . . Exploration | -11 -10 ------------- Run | Scr Mat Turns Passed 770 | 151 619 Spaces Moved 447 | 98 349 Core 2 | 2 . Treads 70 | . 70 Legs . | . . Wheels 375 | 96 279 Hover . | . . Flight . | . . Fastest Speed 50 | 50 80 Average Speed 102 | 82 108 Slowest Speed 180 | 90 180 Overloaded Moves . | . . Propulsion Burnouts . | . . Robots Hopped . | . . Cave-ins Triggered . | . . Exploration Rate (%) 31 | 6 57 Regions Visited 1 Branch Regions . Pre-discovered Areas . | . . Known Exits Taken . | . . Unknown Exits Taken 1 | 1 . Scrap Searched . | . . Spaces Dug 1 | . 1 Terrain Destroyed 1 | . 1 Melee 1 | . 1 Projectile . | . . AOE . | . . Actions | -11 -10 --------- Run | Scr Mat Total 632 | 144 488 Wait 40 | . 40 Move 446 | 97 349 Hop . | . . Pick Up 18 | 11 7 Fast Attach 16 | 10 6 Attach 3 | . 3 Detach 2 | 1 1 Swap 8 | . 8 Drop 15 | 8 7 Fire 56 | 17 39 Melee 27 | . 27 Ram 1 | . 1 Kick . | . . Crush . | . . Escape Stasis . | . . Rewire . | . . Trap . | . . Miscellaneous . | . . Route ------- -11/Scrapyard -10/Materials (discovered 2 exits: [*Mat] / [*Min]) History --------- Turn | Location | Event 22 | -11/Scrapyard | Discovered new exit (range 15) 152 | -11/Scrapyard | Entered Materials 273 | -10/Materials | Discovered new exit (range 15) 314 | -10/Materials | Build established: Mutant 410 | -10/Materials | Core integrity fell below 50% 469 | -10/Materials | Discovered new exit (range 15) 675 | -10/Materials | Central database locked down 761 | -10/Materials | Core integrity fell below 20% 771 | -10/Materials | Destroyed by S-10 Pest with Light Assault Rifle Last Messages --------------- protected as they could be, to enable rapid repair in the field, but this also makes them somewhat susceptible to additional damage from electromagnetic attacks. Grunts patrol in groups, or sometimes operate alone as hauler escorts to protect those with more valuable cargo. 00675_ ALERT: Central database lockdown. Dispatching Investigation squad. 00715_ Sneak attack on G-34 Mercenary. 00719_ G-34 Mercenary destroyed. 00724_ Destroyed Aluminum Leg. 00724_ R-06 Scavenger collects Aluminum Leg. 00728_ R-06 Scavenger collects Ion Engine. 00731_ G-34 Mercenary destroyed. 00733_ R-06 Scavenger collects Sml. Laser. 00734_ Acquired 33 matter. 00752_ Triggered Alarm Trap. 00752_ An alarm sounds. 00752_ ALERT: Alarm triggered, dispatching investigation squad. 00758_ Lgt. Treads destroyed. 00768_ U-05 Engineer lays Concrete. 00771_ G-34 Mercenary destroyed. 00771_ Mining Claw follow-up attack on S-10 Pest. Map ----- +----------------------------------------------------+ | ????????# | #?#####+ | | ????????# ^ #?# | | ????????# ^ = = #?# | | ??????### ^ ##################+##### " | | ????? #?????????????# # "" | | ????? #?????????????# """ # "" | | ????? """"" #?????????????# """ ! # """ | | ?????? """"""""" #?????????????# """ # " | | ?????? ? """ """ #?????????????# # """ | | ???????????? #?????????????# "" # """ | | ??????????? #?????????????# "Tr # """ | | ?????????? """"" #?????????????# "" # " | | ????????????""""""" ####+###??????# # | | ????????? """ """ ###########+#####+#### | | ???????? % | | ?????????? | | ????????????#????# / k | | ?????????????????# ##k################# | | ?????????????????# ## % #???????????# | | ?????????????????# u ## #???????????# | | ?????????????????# ## #???????????# | | ?????????????????#== ## "T" #???????????# | | ?????????????????#= ## """ #???????????### | | ?????????????????#= s## #?????????????? | | ?????????????????# g#########?????????????? | | ?????????????????# @s#?????????????????????? | | ?????????????????# #####%#?????????????????????? | | ?????????????????#####????=#?????????????????????? | | ?????????????????????????a ?????????????????????? | | ??????????????????????????m g?s?????????????????? | | ?????????????????????????? T ???????????????????? | | ?????????????????????????? #??????????????????? | | ????????????????????????????? #??????????????????? | | ?????????????????????????????##??????????????????? | | ?????????????????????????????????????????????????? | | ?????????????????????????????????????????????????? | | ?????????????????????????????????????????????????? | | ?????????????????????????????????????????????????? | | ?????????????????????????????????????????????????? | | ?????????????????????????????????????????????????? | | ?????????????????????????????????????????????????? | | ?????????????????????????????????????????????????? | | ?????????????????????????????????????????????????? | | | | | | | | | | | | | | | +----------------------------------------------------+ Best States ------------- Heat Dissipation 25 Energy Generation 14 Energy Capacity 250 Matter Stores 467 Matter Capacity 500 Sight Range 16 Terrain Scan Density 10 Evasion (%) 44 Recoil Reduction 2 Item Schematics ----------------- None Robot Schematics ------------------ None Fabricated ------------ Nothing Alien Tech Used ----------------- None Achievements -------------- None Challenges ------------ None Game ------ Seed SpikedNullShield Manual? 0 Play Time 00:10:57 Cumulative 103.0 hours Start 2020.04.04 @ 00:58:33 End 2020.04.04 @ 01:06:57 Sessions 1 Manual Loads 0 Difficulty Rogue Special Mode None Game No. 36 Rogue 36 Adventurer 0 Explorer 0 Win Type - Total 1 Types 1/0/0/0/0/0/0 Lore% 49 Gallery% 61 Achievement% 58 Wizard Run 0 Options --------- ASCII 1 Keyboard 1 Movement Numpad Keybinds 0 Fullscreen 1 Font 16/SmallcapsGlow Map View 75x55 Tactical HUD 1 Map Filters NONE Filters NONE Steam 1 RUN: a695742b-a5c4-4bfd-947a-c59764c51073